[Event "Titled Tuesday Blitz November 07 Late 2023"]
[White "Janaszak, Dawid"]
[Black "Pranav, V"]
[WhiteFideId "1119206"]
[BlackFideId "25060783"]
[WhiteElo "2646"]
[BlackElo "3064"]
[Result "0-1"]
[Round "2"]
[TimeControl "180+1"]
[Date "2023.11.07"]
[WhiteClock "0:00:01"]
[BlackClock "0:00:16"]
[Board "7"]

1. e4 {[%clk 0:03:00]}  e5 {[%clk 0:03:00]} 2. Nf3 {[%clk 0:03:00]}  Nc6 {[%clk 0:03:00]} 3. Bc4 {[%clk 0:03:00]}  Nf6 {[%clk 0:03:00]} 4. d4 {[%clk 0:02:58]}  exd4 {[%clk 0:03:00]} 5. O-O {[%clk 0:02:58]}  Nxe4 {[%clk 0:02:59]} 6. Re1 {[%clk 0:02:58]}  d5 {[%clk 0:02:59]} 7. Bxd5 {[%clk 0:02:58]}  Qxd5 {[%clk 0:03:00]} 8. Nc3 {[%clk 0:02:59]}  Qa5 {[%clk 0:03:00]} 9. Nxe4 {[%clk 0:02:59]}  Be6 {[%clk 0:03:00]} 10. Bd2 {[%clk 0:02:52]}  Qd5 {[%clk 0:02:58]} 11. Bg5 {[%clk 0:02:39]}  d3 {[%clk 0:02:24]} 12. cxd3 {[%clk 0:02:27]}  Bb4 {[%clk 0:02:15]} 13. Nc3 {[%clk 0:02:25]}  Qd7 {[%clk 0:02:10]} 14. a3 {[%clk 0:02:07]}  Ba5 {[%clk 0:02:07]} 15. d4 {[%clk 0:02:01]}  Bxc3 {[%clk 0:01:56]} 16. bxc3 {[%clk 0:02:00]}  O-O {[%clk 0:01:56]} 17. Rb1 {[%clk 0:01:52]}  b6 {[%clk 0:01:51]} 18. h3 {[%clk 0:01:44]}  Rfe8 {[%clk 0:01:45]} 19. Qc1 {[%clk 0:01:31]}  f6 {[%clk 0:01:43]} 20. Bf4 {[%clk 0:01:26]}  Na5 {[%clk 0:01:41]} 21. Nd2 {[%clk 0:01:11]}  Bf5 {[%clk 0:01:40]} 22. Ra1 {[%clk 0:01:06]}  h6 {[%clk 0:01:38]} 23. Bg3 {[%clk 0:01:02]}  Rad8 {[%clk 0:01:30]} 24. Qb2 {[%clk 0:00:59]}  Kh7 {[%clk 0:01:29]} 25. Qb4 {[%clk 0:00:50]}  c5 {[%clk 0:01:28]} 26. Qb2 {[%clk 0:00:32]}  cxd4 {[%clk 0:01:22]} 27. Rxe8 {[%clk 0:00:30]}  dxc3 {[%clk 0:01:14]} 28. Qxc3 {[%clk 0:00:30]}  Rxe8 {[%clk 0:01:13]} 29. Nf1 {[%clk 0:00:30]}  Rc8 {[%clk 0:01:05]} 30. Qf3 {[%clk 0:00:29]}  Bg6 {[%clk 0:00:59]} 31. Rd1 {[%clk 0:00:28]}  Qa4 {[%clk 0:00:55]} 32. Re1 {[%clk 0:00:20]}  Nc6 {[%clk 0:00:50]} 33. Rc1 {[%clk 0:00:16]}  Nd4 {[%clk 0:00:37]} 34. Rxc8 {[%clk 0:00:06]}  Nxf3+ {[%clk 0:00:36]} 35. gxf3 {[%clk 0:00:07]}  Qxa3 {[%clk 0:00:25]} 36. Ne3 {[%clk 0:00:07]}  b5 {[%clk 0:00:24]} 37. Rc7 {[%clk 0:00:08]}  Qd3 {[%clk 0:00:21]} 38. Ng4 {[%clk 0:00:07]}  Qxf3 {[%clk 0:00:20]} 39. Bh4 {[%clk 0:00:04]}  Kg8 {[%clk 0:00:17]} 40. Rc8+ {[%clk 0:00:03]}  Kf7 {[%clk 0:00:16]} 41. Rc7+ {[%clk 0:00:03]}  Ke6 {[%clk 0:00:16]} 42. Rxg7 {[%clk 0:00:03]}  Be4 {[%clk 0:00:17]} 43. Kf1 {[%clk 0:00:01]}  Qd1# {[%clk 0:00:16]} 0-1


[Site "https://www.chess.com"]

[Event "Titled Tuesday Blitz November 07 Late 2023"]
[White "Wieczorek, Oskar"]
[Black "Paravyan, David"]
[WhiteFideId "1133950"]
[BlackFideId "4194985"]
[WhiteElo "2645"]
[BlackElo "3046"]
[Result "0-1"]
[Round "2"]
[TimeControl "180+1"]
[Date "2023.11.07"]
[WhiteClock "0:00:30"]
[BlackClock "0:01:35"]
[Board "9"]

1. e4 {[%clk 0:02:53]}  e5 {[%clk 0:02:59]} 2. Nf3 {[%clk 0:02:53]}  Nf6 {[%clk 0:02:58]} 3. Nc3 {[%clk 0:02:53]}  Nc6 {[%clk 0:02:58]} 4. h3 {[%clk 0:02:53]}  d5 {[%clk 0:02:57]} 5. exd5 {[%clk 0:02:53]}  Nxd5 {[%clk 0:02:58]} 6. Bb5 {[%clk 0:02:54]}  Nxc3 {[%clk 0:02:58]} 7. bxc3 {[%clk 0:02:55]}  Bd6 {[%clk 0:02:57]} 8. O-O {[%clk 0:02:55]}  O-O {[%clk 0:02:57]} 9. d4 {[%clk 0:02:56]}  Bd7 {[%clk 0:02:58]} 10. a4 {[%clk 0:02:55]}  Re8 {[%clk 0:02:57]} 11. Re1 {[%clk 0:02:53]}  exd4 {[%clk 0:02:57]} 12. Rxe8+ {[%clk 0:02:37]}  Qxe8 {[%clk 0:02:58]} 13. cxd4 {[%clk 0:02:36]}  a6 {[%clk 0:02:57]} 14. Bf1 {[%clk 0:02:32]}  h6 {[%clk 0:02:51]} 15. c4 {[%clk 0:02:29]}  Rd8 {[%clk 0:02:48]} 16. Bb2 {[%clk 0:02:16]}  Bf5 {[%clk 0:02:45]} 17. Qb3 {[%clk 0:02:11]}  Qe4 {[%clk 0:02:18]} 18. d5 {[%clk 0:01:30]}  Nb4 {[%clk 0:02:10]} 19. Re1 {[%clk 0:00:31]}  Qc2 {[%clk 0:02:10]} 20. Qc3 {[%clk 0:00:31]}  Qxc3 {[%clk 0:02:09]} 21. Bxc3 {[%clk 0:00:32]}  Bd7 {[%clk 0:02:07]} 22. Ne5 {[%clk 0:00:31]}  Bxa4 {[%clk 0:02:04]} 23. f4 {[%clk 0:00:31]}  Be8 {[%clk 0:01:39]} 24. Rb1 {[%clk 0:00:29]}  a5 {[%clk 0:01:39]} 25. Bd4 {[%clk 0:00:30]}  b6 {[%clk 0:01:35]} 26. g4 {[%clk 0:00:30]} 0-1


[Site "https://www.chess.com"]

[Event "Titled Tuesday Blitz November 07 Late 2023"]
[White "Oparin, Grigoriy"]
[Black "Aarav Dengla"]
[WhiteFideId "24125890"]
[BlackFideId "45059756"]
[WhiteElo "3001"]
[BlackElo "2628"]
[Result "1-0"]
[Round "2"]
[TimeControl "180+1"]
[Date "2023.11.07"]
[WhiteClock "0:00:47"]
[BlackClock "0:00:04"]
[Board "13"]

1. c4 {[%clk 0:03:00]}  e6 {[%clk 0:02:57]} 2. Nc3 {[%clk 0:03:00]}  d5 {[%clk 0:02:57]} 3. d4 {[%clk 0:03:01]}  a6 {[%clk 0:02:57]} 4. cxd5 {[%clk 0:03:00]}  exd5 {[%clk 0:02:58]} 5. Nf3 {[%clk 0:02:58]}  h6 {[%clk 0:02:58]} 6. Bf4 {[%clk 0:02:58]}  Nf6 {[%clk 0:02:58]} 7. e3 {[%clk 0:02:58]}  Bd6 {[%clk 0:02:59]} 8. Bd3 {[%clk 0:02:58]}  Bxf4 {[%clk 0:02:58]} 9. exf4 {[%clk 0:02:58]}  Bg4 {[%clk 0:02:59]} 10. h3 {[%clk 0:02:57]}  Bxf3 {[%clk 0:02:49]} 11. Qxf3 {[%clk 0:02:58]}  Nc6 {[%clk 0:02:41]} 12. O-O-O {[%clk 0:02:55]}  O-O {[%clk 0:02:35]} 13. Bc2 {[%clk 0:02:52]}  Qd6 {[%clk 0:02:34]} 14. g4 {[%clk 0:02:50]}  Nh7 {[%clk 0:02:29]} 15. Qxd5 {[%clk 0:02:48]}  Qxf4+ {[%clk 0:02:28]} 16. Kb1 {[%clk 0:02:47]}  Rad8 {[%clk 0:02:27]} 17. Qe4 {[%clk 0:02:45]}  Qxe4 {[%clk 0:02:27]} 18. Bxe4 {[%clk 0:02:46]}  Nxd4 {[%clk 0:02:20]} 19. Bxb7 {[%clk 0:02:46]}  Rd6 {[%clk 0:02:20]} 20. Rhe1 {[%clk 0:02:43]}  Ng5 {[%clk 0:02:16]} 21. Bd5 {[%clk 0:02:36]}  Nb5 {[%clk 0:02:05]} 22. Ne4 {[%clk 0:02:34]}  Nxe4 {[%clk 0:01:58]} 23. Bxe4 {[%clk 0:02:35]}  Rfd8 {[%clk 0:01:46]} 24. Rxd6 {[%clk 0:02:35]}  Rxd6 {[%clk 0:01:47]} 25. Kc1 {[%clk 0:02:33]}  g6 {[%clk 0:01:42]} 26. Rd1 {[%clk 0:02:31]}  Rf6 {[%clk 0:01:42]} 27. f3 {[%clk 0:02:29]}  Nd6 {[%clk 0:01:40]} 28. Bd5 {[%clk 0:02:30]}  Rf4 {[%clk 0:01:38]} 29. Kc2 {[%clk 0:02:30]}  Kg7 {[%clk 0:01:37]} 30. a3 {[%clk 0:02:30]}  a5 {[%clk 0:01:34]} 31. Rd3 {[%clk 0:02:27]}  Nb5 {[%clk 0:01:10]} 32. Kd2 {[%clk 0:02:26]}  Rf6 {[%clk 0:01:06]} 33. Ke3 {[%clk 0:02:24]}  Rb6 {[%clk 0:01:05]} 34. Rb3 {[%clk 0:02:22]}  Kf6 {[%clk 0:00:53]} 35. f4 {[%clk 0:02:21]}  Ke7 {[%clk 0:00:46]} 36. a4 {[%clk 0:02:16]}  Nd6 {[%clk 0:00:45]} 37. Rxb6 {[%clk 0:02:16]}  cxb6 {[%clk 0:00:46]} 38. Kd4 {[%clk 0:02:17]}  g5 {[%clk 0:00:31]} 39. fxg5 {[%clk 0:02:16]}  hxg5 {[%clk 0:00:32]} 40. Bb3 {[%clk 0:02:11]}  Nb7 {[%clk 0:00:31]} 41. Kd5 {[%clk 0:02:11]}  Nc5 {[%clk 0:00:31]} 42. Bc2 {[%clk 0:02:12]}  Kd7 {[%clk 0:00:31]} 43. Bf5+ {[%clk 0:02:07]}  Ke7 {[%clk 0:00:29]} 44. Bc2 {[%clk 0:02:04]}  Kd7 {[%clk 0:00:29]} 45. b3 {[%clk 0:02:03]}  f6 {[%clk 0:00:27]} 46. Bd1 {[%clk 0:02:02]}  Kc7 {[%clk 0:00:27]} 47. Bc2 {[%clk 0:01:44]}  Kd7 {[%clk 0:00:27]} 48. Bf5+ {[%clk 0:01:38]}  Kc7 {[%clk 0:00:26]} 49. Bh7 {[%clk 0:01:37]}  Kd7 {[%clk 0:00:21]} 50. Bc2 {[%clk 0:01:31]}  Kc7 {[%clk 0:00:21]} 51. Bd1 {[%clk 0:01:14]}  Kd7 {[%clk 0:00:21]} 52. Bc2 {[%clk 0:01:04]}  Kc7 {[%clk 0:00:20]} 53. Bf5 {[%clk 0:00:58]}  Nxb3 {[%clk 0:00:13]} 54. Ke6 {[%clk 0:00:59]}  Nd4+ {[%clk 0:00:07]} 55. Kxf6 {[%clk 0:00:59]}  Nxf5 {[%clk 0:00:08]} 56. gxf5 {[%clk 0:00:59]}  b5 {[%clk 0:00:08]} 57. axb5 {[%clk 0:00:56]}  a4 {[%clk 0:00:09]} 58. Kg6 {[%clk 0:00:50]}  a3 {[%clk 0:00:09]} 59. f6 {[%clk 0:00:51]}  a2 {[%clk 0:00:09]} 60. f7 {[%clk 0:00:52]}  a1=Q {[%clk 0:00:10]} 61. f8=Q {[%clk 0:00:53]}  Qh1 {[%clk 0:00:09]} 62. Qc5+ {[%clk 0:00:47]}  Kd8 {[%clk 0:00:04]} 63. Qd6+ {[%clk 0:00:47]} 1-0


[Site "https://www.chess.com"]

[Event "Titled Tuesday Blitz November 07 Late 2023"]
[White "Perske, Thore"]
[Black "Drygalov, Andrey"]
[WhiteFideId "12902195"]
[BlackFideId "24171735"]
[WhiteElo "2628"]
[BlackElo "2986"]
[Result "1-0"]
[Round "2"]
[TimeControl "180+1"]
[Date "2023.11.07"]
[WhiteClock "0:00:07"]
[BlackClock "0:00:04"]
[Board "14"]

1. d4 {[%clk 0:03:00]}  Nf6 {[%clk 0:03:00]} 2. g3 {[%clk 0:03:00]}  d5 {[%clk 0:03:00]} 3. Bg2 {[%clk 0:03:00]}  Bf5 {[%clk 0:03:00]} 4. Nf3 {[%clk 0:02:58]}  c6 {[%clk 0:02:59]} 5. c4 {[%clk 0:02:58]}  e6 {[%clk 0:03:00]} 6. Nc3 {[%clk 0:02:56]}  Nbd7 {[%clk 0:02:59]} 7. Nh4 {[%clk 0:02:48]}  Bg4 {[%clk 0:02:54]} 8. h3 {[%clk 0:02:45]}  Bh5 {[%clk 0:02:54]} 9. g4 {[%clk 0:02:42]}  Bg6 {[%clk 0:02:54]} 10. Qb3 {[%clk 0:02:35]}  Qb6 {[%clk 0:02:52]} 11. Nxg6 {[%clk 0:02:33]}  hxg6 {[%clk 0:02:51]} 12. Bf4 {[%clk 0:02:25]}  Be7 {[%clk 0:02:42]} 13. c5 {[%clk 0:02:23]}  Qxb3 {[%clk 0:02:42]} 14. axb3 {[%clk 0:02:24]}  a6 {[%clk 0:02:43]} 15. b4 {[%clk 0:02:13]}  Rc8 {[%clk 0:02:43]} 16. f3 {[%clk 0:01:58]}  Nh7 {[%clk 0:01:53]} 17. h4 {[%clk 0:01:35]}  Bf6 {[%clk 0:01:50]} 18. O-O-O {[%clk 0:01:10]}  Nhf8 {[%clk 0:01:25]} 19. g5 {[%clk 0:01:03]}  Bxd4 {[%clk 0:01:13]} 20. Rxd4 {[%clk 0:01:04]}  e5 {[%clk 0:01:14]} 21. Bxe5 {[%clk 0:00:48]}  Nxe5 {[%clk 0:01:14]} 22. Bh3 {[%clk 0:00:47]}  Ne6 {[%clk 0:01:14]} 23. Bxe6 {[%clk 0:00:45]}  fxe6 {[%clk 0:01:15]} 24. b3 {[%clk 0:00:35]}  Ke7 {[%clk 0:01:13]} 25. Kd2 {[%clk 0:00:28]}  Rcf8 {[%clk 0:01:13]} 26. Nd1 {[%clk 0:00:20]}  Nf7 {[%clk 0:01:06]} 27. Rg4 {[%clk 0:00:19]}  e5 {[%clk 0:01:01]} 28. Nf2 {[%clk 0:00:19]}  Ke6 {[%clk 0:00:43]} 29. e3 {[%clk 0:00:19]}  Rh5 {[%clk 0:00:43]} 30. Ke2 {[%clk 0:00:18]}  Rfh8 {[%clk 0:00:43]} 31. Rh3 {[%clk 0:00:18]}  Ra8 {[%clk 0:00:35]} 32. Rh1 {[%clk 0:00:17]}  a5 {[%clk 0:00:19]} 33. Ra1 {[%clk 0:00:17]}  Rah8 {[%clk 0:00:20]} 34. bxa5 {[%clk 0:00:17]}  Rxh4 {[%clk 0:00:20]} 35. Rxh4 {[%clk 0:00:17]}  Rxh4 {[%clk 0:00:21]} 36. a6 {[%clk 0:00:18]}  bxa6 {[%clk 0:00:20]} 37. Rxa6 {[%clk 0:00:19]}  Nd8 {[%clk 0:00:20]} 38. Ra7 {[%clk 0:00:18]}  Rb4 {[%clk 0:00:15]} 39. Rxg7 {[%clk 0:00:17]}  Rxb3 {[%clk 0:00:14]} 40. Rxg6+ {[%clk 0:00:17]}  Kf7 {[%clk 0:00:15]} 41. Rd6 {[%clk 0:00:15]}  Ke7 {[%clk 0:00:15]} 42. Ng4 {[%clk 0:00:14]}  Rb2+ {[%clk 0:00:12]} 43. Kd3 {[%clk 0:00:14]}  Rb3+ {[%clk 0:00:11]} 44. Kd2 {[%clk 0:00:15]}  Nf7 {[%clk 0:00:09]} 45. Rxc6 {[%clk 0:00:14]}  Nxg5 {[%clk 0:00:10]} 46. Nxe5 {[%clk 0:00:14]}  Ra3 {[%clk 0:00:09]} 47. Rd6 {[%clk 0:00:11]}  Ra2+ {[%clk 0:00:09]} 48. Kd3 {[%clk 0:00:11]}  Ne6 {[%clk 0:00:04]} 49. Rxd5 {[%clk 0:00:10]}  Ra3+ {[%clk 0:00:05]} 50. Ke4 {[%clk 0:00:08]}  Kf6 {[%clk 0:00:03]} 51. Ng4+ {[%clk 0:00:07]}  Ke7 {[%clk 0:00:04]} 52. f4 {[%clk 0:00:05]}  Rc3 {[%clk 0:00:03]} 53. Re5 {[%clk 0:00:05]}  Kd7 {[%clk 0:00:02]} 54. Nf6+ {[%clk 0:00:05]}  Ke7 {[%clk 0:00:02]} 55. Nd5+ {[%clk 0:00:05]}  Kf7 {[%clk 0:00:01]} 56. Nxc3 {[%clk 0:00:05]}  Nc7 {[%clk 0:00:02]} 57. Nd5 {[%clk 0:00:05]}  Na6 {[%clk 0:00:03]} 58. Rf5+ {[%clk 0:00:06]}  Ke8 {[%clk 0:00:03]} 59. c6 {[%clk 0:00:06]}  Nc5+ {[%clk 0:00:03]} 60. Kf3 {[%clk 0:00:06]}  Kd8 {[%clk 0:00:03]} 61. Rf7 {[%clk 0:00:06]}  Ne6 {[%clk 0:00:03]} 62. c7+ {[%clk 0:00:07]}  Kc8 {[%clk 0:00:04]} 63. Re7 {[%clk 0:00:07]}  Nd4+ {[%clk 0:00:01]} 64. exd4 {[%clk 0:00:06]}  Kb7 {[%clk 0:00:02]} 65. Nf6 {[%clk 0:00:06]}  Kc8 {[%clk 0:00:02]} 66. d5 {[%clk 0:00:06]}  Kb7 {[%clk 0:00:03]} 67. d6 {[%clk 0:00:06]}  Kc8 {[%clk 0:00:03]} 68. Re8+ {[%clk 0:00:07]}  Kb7 {[%clk 0:00:04]} 69. c8=Q+ {[%clk 0:00:07]}  Kb6 {[%clk 0:00:04]} 70. Qc7+ {[%clk 0:00:07]} 1-0


[Site "https://www.chess.com"]

[Event "Titled Tuesday Blitz November 07 Late 2023"]
[White "Hong, Andrew"]
[Black "Bujisho, Benjamin"]
[WhiteFideId "2099438"]
[BlackFideId "608610"]
[WhiteElo "2976"]
[BlackElo "2624"]
[Result "1-0"]
[Round "2"]
[TimeControl "180+1"]
[Date "2023.11.07"]
[WhiteClock "0:01:21"]
[BlackClock "0:00:23"]
[Board "16"]

1. d4 {[%clk 0:03:00]}  d6 {[%clk 0:02:59]} 2. Nc3 {[%clk 0:03:00]}  d5 {[%clk 0:02:56]} 3. Bf4 {[%clk 0:02:59]}  e6 {[%clk 0:02:53]} 4. Nb5 {[%clk 0:02:56]}  Bd6 {[%clk 0:02:40]} 5. Nxd6+ {[%clk 0:02:54]}  cxd6 {[%clk 0:02:41]} 6. e3 {[%clk 0:02:55]}  Nc6 {[%clk 0:02:34]} 7. c3 {[%clk 0:02:54]}  h6 {[%clk 0:02:30]} 8. Bd3 {[%clk 0:02:52]}  Nf6 {[%clk 0:02:28]} 9. Nf3 {[%clk 0:02:50]}  Qe7 {[%clk 0:02:27]} 10. Bg3 {[%clk 0:02:46]}  Bd7 {[%clk 0:02:25]} 11. Qb3 {[%clk 0:02:44]}  Nh5 {[%clk 0:02:20]} 12. Bh4 {[%clk 0:02:41]}  g5 {[%clk 0:02:19]} 13. Bg3 {[%clk 0:02:41]}  Nxg3 {[%clk 0:02:19]} 14. hxg3 {[%clk 0:02:42]}  Rb8 {[%clk 0:02:12]} 15. a4 {[%clk 0:02:26]}  Kf8 {[%clk 0:02:11]} 16. a5 {[%clk 0:02:24]}  Kg7 {[%clk 0:02:11]} 17. Qa3 {[%clk 0:02:22]}  b5 {[%clk 0:02:03]} 18. axb6 {[%clk 0:02:17]}  axb6 {[%clk 0:02:03]} 19. Bb5 {[%clk 0:02:16]}  Na5 {[%clk 0:01:45]} 20. Be2 {[%clk 0:02:07]}  Ra8 {[%clk 0:01:37]} 21. O-O {[%clk 0:02:04]}  Bc6 {[%clk 0:01:34]} 22. Qb4 {[%clk 0:02:00]}  Qc7 {[%clk 0:01:34]} 23. Nd2 {[%clk 0:01:55]}  f5 {[%clk 0:01:19]} 24. Rfc1 {[%clk 0:01:45]}  g4 {[%clk 0:01:10]} 25. c4 {[%clk 0:01:42]}  dxc4 {[%clk 0:01:10]} 26. Nxc4 {[%clk 0:01:41]}  Nxc4 {[%clk 0:01:10]} 27. Rxa8 {[%clk 0:01:40]}  Bxa8 {[%clk 0:01:05]} 28. Rxc4 {[%clk 0:01:40]}  Qb7 {[%clk 0:01:04]} 29. f3 {[%clk 0:01:30]}  gxf3 {[%clk 0:00:56]} 30. Bxf3 {[%clk 0:01:25]}  Qd7 {[%clk 0:00:43]} 31. Qxb6 {[%clk 0:01:23]}  Rc8 {[%clk 0:00:23]} 32. Rxc8 {[%clk 0:01:22]}  Qxc8 {[%clk 0:00:24]} 33. Qa7+ {[%clk 0:01:22]}  Kg6 {[%clk 0:00:23]} 34. Qxa8 {[%clk 0:01:21]} 1-0


[Site "https://www.chess.com"]

[Event "Titled Tuesday Blitz November 07 Late 2023"]
[White "aghasiyevkamal"]
[Black "Makarian, Rudik"]
[BlackFideId "44105681"]
[WhiteElo "2616"]
[BlackElo "2968"]
[Result "0-1"]
[Round "2"]
[TimeControl "180+1"]
[Date "2023.11.07"]
[WhiteClock "0:00:04"]
[BlackClock "0:00:02"]
[Board "19"]

1. e4 {[%clk 0:02:57]}  c5 {[%clk 0:02:58]} 2. Nf3 {[%clk 0:02:57]}  d6 {[%clk 0:02:59]} 3. Bb5+ {[%clk 0:02:56]}  Nd7 {[%clk 0:02:58]} 4. a4 {[%clk 0:02:51]}  a6 {[%clk 0:02:58]} 5. Be2 {[%clk 0:02:50]}  Ngf6 {[%clk 0:02:58]} 6. Nc3 {[%clk 0:02:49]}  b6 {[%clk 0:02:58]} 7. d4 {[%clk 0:02:34]}  cxd4 {[%clk 0:02:59]} 8. Nxd4 {[%clk 0:02:34]}  Bb7 {[%clk 0:02:58]} 9. O-O {[%clk 0:02:32]}  e6 {[%clk 0:02:57]} 10. f4 {[%clk 0:02:17]}  Qc7 {[%clk 0:02:49]} 11. Bf3 {[%clk 0:02:08]}  Be7 {[%clk 0:02:46]} 12. Kh1 {[%clk 0:01:58]}  O-O {[%clk 0:02:44]} 13. g4 {[%clk 0:01:52]}  h6 {[%clk 0:02:35]} 14. h4 {[%clk 0:01:46]}  d5 {[%clk 0:02:25]} 15. exd5 {[%clk 0:01:40]}  Nxd5 {[%clk 0:02:24]} 16. Nxd5 {[%clk 0:01:37]}  Bxd5 {[%clk 0:02:17]} 17. Bxd5 {[%clk 0:01:36]}  exd5 {[%clk 0:02:18]} 18. g5 {[%clk 0:01:33]}  hxg5 {[%clk 0:02:06]} 19. hxg5 {[%clk 0:01:31]}  Nc5 {[%clk 0:02:03]} 20. Qh5 {[%clk 0:01:22]}  g6 {[%clk 0:01:53]} 21. Qh3 {[%clk 0:01:14]}  Ne4 {[%clk 0:01:44]} 22. Kg2 {[%clk 0:01:13]}  f6 {[%clk 0:00:22]} 23. Rh1 {[%clk 0:01:07]}  Kf7 {[%clk 0:00:21]} 24. Qe6+ {[%clk 0:00:53]}  Ke8 {[%clk 0:00:22]} 25. Qxd5 {[%clk 0:00:53]}  Rd8 {[%clk 0:00:11]} 26. Qxe4 {[%clk 0:00:53]}  fxg5 {[%clk 0:00:08]} 27. Rh7 {[%clk 0:00:45]}  Rf7 {[%clk 0:00:06]} 28. Qxg6 {[%clk 0:00:40]}  Bc5 {[%clk 0:00:03]} 29. Bd2 {[%clk 0:00:23]}  Qb7+ {[%clk 0:00:01]} 30. Kh2 {[%clk 0:00:21]}  Rxd4 {[%clk 0:00:01]} 31. Re1+ {[%clk 0:00:20]}  Kd8 {[%clk 0:00:02]} 32. Qg8+ {[%clk 0:00:08]}  Bf8 {[%clk 0:00:02]} 33. Qxf7 {[%clk 0:00:03]}  Rxd2+ {[%clk 0:00:02]} 34. Kh3 {[%clk 0:00:04]}  Qg2# {[%clk 0:00:02]} 0-1


[Site "https://www.chess.com"]

[Event "Titled Tuesday Blitz November 07 Late 2023"]
[White "Sarana, Alexey"]
[Black "GatoRojo150"]
[WhiteFideId "24133795"]
[WhiteElo "2965"]
[BlackElo "2614"]
[Result "1-0"]
[Round "2"]
[TimeControl "180+1"]
[Date "2023.11.07"]
[WhiteClock "0:01:28"]
[BlackClock "0:00:11"]
[Board "20"]

1. d4 {[%clk 0:02:07]}  d5 {[%clk 0:02:58]} 2. c4 {[%clk 0:02:07]}  dxc4 {[%clk 0:02:58]} 3. Nf3 {[%clk 0:02:07]}  Nf6 {[%clk 0:02:57]} 4. e3 {[%clk 0:02:08]}  Bg4 {[%clk 0:02:57]} 5. Bxc4 {[%clk 0:02:08]}  e6 {[%clk 0:02:58]} 6. h3 {[%clk 0:02:08]}  Bh5 {[%clk 0:02:58]} 7. O-O {[%clk 0:02:09]}  Nc6 {[%clk 0:02:58]} 8. Nc3 {[%clk 0:02:09]}  Bd6 {[%clk 0:02:58]} 9. Be2 {[%clk 0:02:10]}  O-O {[%clk 0:02:58]} 10. Nd2 {[%clk 0:02:10]}  Bxe2 {[%clk 0:02:56]} 11. Qxe2 {[%clk 0:02:11]}  a6 {[%clk 0:02:53]} 12. Nc4 {[%clk 0:02:11]}  e5 {[%clk 0:02:42]} 13. d5 {[%clk 0:02:03]}  Ne7 {[%clk 0:02:41]} 14. e4 {[%clk 0:02:03]}  b5 {[%clk 0:02:24]} 15. Nxd6 {[%clk 0:02:02]}  cxd6 {[%clk 0:02:24]} 16. Bg5 {[%clk 0:01:59]}  Nd7 {[%clk 0:02:04]} 17. Rfc1 {[%clk 0:01:50]}  f6 {[%clk 0:02:04]} 18. Be3 {[%clk 0:01:47]}  Ng6 {[%clk 0:01:57]} 19. Qg4 {[%clk 0:01:41]}  Kh8 {[%clk 0:01:43]} 20. a4 {[%clk 0:01:41]}  b4 {[%clk 0:01:38]} 21. Ne2 {[%clk 0:01:41]}  f5 {[%clk 0:01:29]} 22. exf5 {[%clk 0:01:39]}  Nf6 {[%clk 0:01:30]} 23. Qxb4 {[%clk 0:01:37]}  Nxd5 {[%clk 0:01:25]} 24. Qe4 {[%clk 0:01:37]}  Nf6 {[%clk 0:01:16]} 25. Qd3 {[%clk 0:01:34]}  Ne7 {[%clk 0:01:08]} 26. Ng3 {[%clk 0:01:33]}  d5 {[%clk 0:01:05]} 27. Bc5 {[%clk 0:01:34]}  e4 {[%clk 0:01:00]} 28. Qd4 {[%clk 0:01:33]}  Qd7 {[%clk 0:00:54]} 29. b4 {[%clk 0:01:32]}  Nxf5 {[%clk 0:00:49]} 30. Nxf5 {[%clk 0:01:32]}  Qxf5 {[%clk 0:00:50]} 31. Bxf8 {[%clk 0:01:32]}  Rxf8 {[%clk 0:00:51]} 32. b5 {[%clk 0:01:31]}  Nh5 {[%clk 0:00:45]} 33. Rc7 {[%clk 0:01:28]}  axb5 {[%clk 0:00:24]} 34. axb5 {[%clk 0:01:26]}  Qg5 {[%clk 0:00:18]} 35. Raa7 {[%clk 0:01:25]}  Nf4 {[%clk 0:00:17]} 36. Qxg7+ {[%clk 0:01:24]}  Qxg7 {[%clk 0:00:16]} 37. Rxg7 {[%clk 0:01:25]}  Ne6 {[%clk 0:00:10]} 38. Rxh7+ {[%clk 0:01:25]}  Kg8 {[%clk 0:00:11]} 39. Rhe7 {[%clk 0:01:25]}  Rf6 {[%clk 0:00:10]} 40. Ra8+ {[%clk 0:01:25]}  Nf8 {[%clk 0:00:10]} 41. Ree8 {[%clk 0:01:25]}  d4 {[%clk 0:00:10]} 42. Rxf8+ {[%clk 0:01:25]}  Rxf8 {[%clk 0:00:11]} 43. Rxf8+ {[%clk 0:01:25]}  Kxf8 {[%clk 0:00:12]} 44. b6 {[%clk 0:01:26]}  d3 {[%clk 0:00:12]} 45. b7 {[%clk 0:01:26]}  d2 {[%clk 0:00:12]} 46. b8=Q+ {[%clk 0:01:27]}  Ke7 {[%clk 0:00:13]} 47. Qb1 {[%clk 0:01:27]}  d1=Q+ {[%clk 0:00:11]} 48. Qxd1 {[%clk 0:01:28]} 1-0


[Site "https://www.chess.com"]

[Event "Titled Tuesday Blitz November 07 Late 2023"]
[White "ArtemDyachuk"]
[Black "Matlakov, Maxim"]
[BlackFideId "4168003"]
[WhiteElo "2613"]
[BlackElo "2960"]
[Result "0-1"]
[Round "2"]
[TimeControl "180+1"]
[Date "2023.11.07"]
[WhiteClock "0:00:00"]
[BlackClock "0:01:21"]
[Board "21"]

1. e4 {[%clk 0:03:00]}  c5 {[%clk 0:02:59]} 2. Nf3 {[%clk 0:03:00]}  e6 {[%clk 0:02:59]} 3. d4 {[%clk 0:03:00]}  cxd4 {[%clk 0:02:59]} 4. Nxd4 {[%clk 0:03:00]}  Nc6 {[%clk 0:02:59]} 5. Nc3 {[%clk 0:03:00]}  Qc7 {[%clk 0:02:59]} 6. Be3 {[%clk 0:02:59]}  a6 {[%clk 0:02:58]} 7. f4 {[%clk 0:02:58]}  b5 {[%clk 0:02:56]} 8. Bd3 {[%clk 0:02:58]}  Bb7 {[%clk 0:02:55]} 9. Qf3 {[%clk 0:02:57]}  Nf6 {[%clk 0:02:51]} 10. O-O {[%clk 0:02:56]}  h5 {[%clk 0:02:49]} 11. h3 {[%clk 0:02:50]}  h4 {[%clk 0:02:47]} 12. Rae1 {[%clk 0:02:31]}  Nxd4 {[%clk 0:02:47]} 13. Bxd4 {[%clk 0:02:31]}  Bc5 {[%clk 0:02:47]} 14. Qf2 {[%clk 0:02:22]}  Rc8 {[%clk 0:02:40]} 15. Kh1 {[%clk 0:01:31]}  Nh5 {[%clk 0:02:33]} 16. Ne2 {[%clk 0:01:31]}  Bxd4 {[%clk 0:02:30]} 17. Qxd4 {[%clk 0:01:32]}  Qc5 {[%clk 0:02:29]} 18. c3 {[%clk 0:01:22]}  Qxd4 {[%clk 0:02:28]} 19. cxd4 {[%clk 0:01:22]}  Ke7 {[%clk 0:02:28]} 20. Kg1 {[%clk 0:00:54]}  g6 {[%clk 0:02:26]} 21. a3 {[%clk 0:00:50]}  f5 {[%clk 0:02:23]} 22. exf5 {[%clk 0:00:43]}  gxf5 {[%clk 0:02:24]} 23. Nc3 {[%clk 0:00:44]}  Rhg8 {[%clk 0:01:36]} 24. Rf2 {[%clk 0:00:43]}  Kd6 {[%clk 0:01:28]} 25. Re5 {[%clk 0:00:37]}  Rg3 {[%clk 0:01:26]} 26. Bf1 {[%clk 0:00:26]}  Rcg8 {[%clk 0:01:23]} 27. Kh2 {[%clk 0:00:05]}  Nxf4 {[%clk 0:01:23]} 28. Nxb5+ {[%clk 0:00:01]}  axb5 {[%clk 0:01:22]} 29. Rxf4 {[%clk 0:00:00]}  Bxg2 {[%clk 0:01:21]} 0-1


[Site "https://www.chess.com"]